[Event "Early-Titled-Tuesday-Blitz-April-16-2024"]
[Site "Chess.com"]
[Date "2024.04.16"]
[Round "9"]
[White "h4parah5"]
[Black "HansOnTwitch"]
[Result "1/2-1/2"]
[WhiteElo "3014"]
[BlackElo "3153"]
[TimeControl "180+1"]
[EndTime "9:50:25 PDT"]
[Termination "Game drawn by repetition"]

1. e4 {[%clk 0:03:00.9]} 1... c5 {[%clk 0:02:59.6]} 2. Nf3 {[%clk 0:03:00.5]}
2... d6 {[%clk 0:02:59.8]} 3. d4 {[%clk 0:02:58.4]} 3... cxd4 {[%clk 0:03:00.7]}
4. Nxd4 {[%clk 0:02:58.8]} 4... Nf6 {[%clk 0:03:01.2]} 5. Nc3 {[%clk 0:02:59.1]}
5... a6 {[%clk 0:03:01.8]} 6. Be3 {[%clk 0:02:58.9]} 6... e5 {[%clk 0:03:01.7]}
7. Nb3 {[%clk 0:02:58.9]} 7... Be6 {[%clk 0:03:02.4]} 8. Qd2 {[%clk 0:02:57.6]}
8... Be7 {[%clk 0:03:02]} 9. O-O-O {[%clk 0:02:50.8]} 9... Nbd7 {[%clk 0:03:02]}
10. h3 {[%clk 0:02:50.5]} 10... Rc8 {[%clk 0:02:43.4]} 11. g4 {[%clk 0:02:49.3]}
11... h6 {[%clk 0:02:40.3]} 12. Kb1 {[%clk 0:02:46.5]} 12... b5 {[%clk
0:02:38.6]} 13. f4 {[%clk 0:02:45.1]} 13... Qc7 {[%clk 0:02:35.5]} 14. Qg2
{[%clk 0:02:27]} 14... Nb6 {[%clk 0:02:23.3]} 15. g5 {[%clk 0:01:58.7]} 15...
hxg5 {[%clk 0:02:21.2]} 16. fxg5 {[%clk 0:01:58.2]} 16... Nh5 {[%clk 0:02:11.3]}
17. g6 {[%clk 0:01:57.3]} 17... f6 {[%clk 0:01:52.7]} 18. Qf2 {[%clk 0:01:54.5]}
18... Nc4 {[%clk 0:01:44.4]} 19. Bc1 {[%clk 0:01:36.9]} 19... Nf4 {[%clk
0:01:40.5]} 20. Bxf4 {[%clk 0:01:23.2]} 20... Nxb2 {[%clk 0:01:30.5]} 21. Bc1
{[%clk 0:01:23]} 21... Nxd1 {[%clk 0:01:27.8]} 22. Nxd1 {[%clk 0:01:23.9]} 22...
d5 {[%clk 0:01:22.9]} 23. exd5 {[%clk 0:01:20.1]} 23... Bxd5 {[%clk 0:01:23.8]}
24. Bg2 {[%clk 0:01:19.1]} 24... Bxg2 {[%clk 0:01:17.8]} 25. Qxg2 {[%clk
0:01:20]} 25... Qc6 {[%clk 0:01:15.6]} 26. Qxc6+ {[%clk 0:01:11.7]} 26... Rxc6
{[%clk 0:01:16.5]} 27. Ne3 {[%clk 0:01:11.8]} 27... Rh5 {[%clk 0:01:16.7]} 28.
Nd2 {[%clk 0:00:59.8]} 28... f5 {[%clk 0:01:13.2]} 29. Nf3 {[%clk 0:00:54.5]}
29... Bf6 {[%clk 0:00:42.9]} 30. Nd5 {[%clk 0:00:47.8]} 30... e4 {[%clk
0:00:43.2]} 31. Ne1 {[%clk 0:00:35.9]} 31... Rd6 {[%clk 0:00:33.6]} 32. Nf4
{[%clk 0:00:34]} 32... Rh8 {[%clk 0:00:32.9]} 33. Neg2 {[%clk 0:00:34.1]} 33...
Kd7 {[%clk 0:00:22.7]} 34. Ne3 {[%clk 0:00:32.9]} 34... Be5 {[%clk 0:00:19.9]}
35. Nxf5 {[%clk 0:00:18.5]} 35... Bxf4 {[%clk 0:00:16.9]} 36. Bxf4 {[%clk
0:00:18.3]} 36... Rxg6 {[%clk 0:00:17.2]} 37. Rd1+ {[%clk 0:00:17.7]} 37... Ke6
{[%clk 0:00:17.4]} 38. Ne3 {[%clk 0:00:16.9]} 38... Rxh3 {[%clk 0:00:16.5]} 39.
Rd6+ {[%clk 0:00:16.4]} 39... Kf7 {[%clk 0:00:17]} 40. Rd7+ {[%clk 0:00:16.4]}
40... Kg8 {[%clk 0:00:17.4]} 41. Re7 {[%clk 0:00:16.4]} 41... Rf6 {[%clk
0:00:15.3]} 42. Bg5 {[%clk 0:00:13.3]} 42... Rg6 {[%clk 0:00:11.1]} 43. Bf4
{[%clk 0:00:13.4]} 43... Rg1+ {[%clk 0:00:07.5]} 44. Kb2 {[%clk 0:00:13.1]}
44... Re1 {[%clk 0:00:07.6]} 45. Nf5 {[%clk 0:00:12.1]} 45... Rf3 {[%clk
0:00:07.3]} 46. Rxg7+ {[%clk 0:00:11]} 46... Kf8 {[%clk 0:00:06.7]} 47. Bd6+
{[%clk 0:00:08.6]} 47... Ke8 {[%clk 0:00:06.6]} 48. Nd4 {[%clk 0:00:08.7]} 48...
Rf7 {[%clk 0:00:05.4]} 49. Rg6 {[%clk 0:00:07.9]} 49... e3 {[%clk 0:00:05]} 50.
Bb4 {[%clk 0:00:07.8]} 50... Rd1 {[%clk 0:00:05.1]} 51. Ne2 {[%clk 0:00:07.5]}
51... Rf3 {[%clk 0:00:04.3]} 52. Nc3 {[%clk 0:00:06.3]} 52... Rdf1 {[%clk
0:00:03.1]} 53. Rxa6 {[%clk 0:00:06.1]} 53... Kf7 {[%clk 0:00:03.1]} 54. Ra5
{[%clk 0:00:06]} 54... Rf5 {[%clk 0:00:02.9]} 55. Rxb5 {[%clk 0:00:05.1]} 55...
Rxb5 {[%clk 0:00:02.7]} 56. Nxb5 {[%clk 0:00:06]} 56... e2 {[%clk 0:00:03.6]}
57. Nd4 {[%clk 0:00:06]} 57... e1=Q {[%clk 0:00:02.5]} 58. Bxe1 {[%clk 0:00:06]}
58... Rxe1 {[%clk 0:00:03.4]} 59. a4 {[%clk 0:00:05.9]} 59... Ke7 {[%clk
0:00:04]} 60. Kc3 {[%clk 0:00:05.9]} 60... Kd6 {[%clk 0:00:04.2]} 61. Nb3 {[%clk
0:00:05.4]} 61... Kc6 {[%clk 0:00:04.3]} 62. Kb4 {[%clk 0:00:05.1]} 62... Re4+
{[%clk 0:00:04.4]} 63. c4 {[%clk 0:00:05.5]} 63... Re8 {[%clk 0:00:03.7]} 64.
Na5+ {[%clk 0:00:05]} 64... Kb6 {[%clk 0:00:03.8]} 65. Nb3 {[%clk 0:00:05.1]}
65... Ka6 {[%clk 0:00:03.9]} 66. Nc5+ {[%clk 0:00:04.7]} 66... Ka7 {[%clk
0:00:04.2]} 67. a5 {[%clk 0:00:04.9]} 67... Rb8+ {[%clk 0:00:04.3]} 68. Ka4
{[%clk 0:00:05.2]} 68... Rc8 {[%clk 0:00:05.2]} 69. Kb4 {[%clk 0:00:05.2]} 69...
Rb8+ {[%clk 0:00:05.8]} 70. Ka4 {[%clk 0:00:05.6]} 70... Rh8 {[%clk 0:00:06.5]}
71. Kb5 {[%clk 0:00:05.8]} 71... Rh5 {[%clk 0:00:06.7]} 72. Kb4 {[%clk
0:00:06.2]} 72... Rh1 {[%clk 0:00:07.3]} 73. Ka4 {[%clk 0:00:06.2]} 73... Rb1
{[%clk 0:00:07.5]} 74. Nb3 {[%clk 0:00:05.8]} 74... Ra1+ {[%clk 0:00:07.8]} 75.
Kb4 {[%clk 0:00:06]} 75... Rh1 {[%clk 0:00:07.5]} 76. Kb5 {[%clk 0:00:06.3]}
76... Rh8 {[%clk 0:00:07.9]} 77. Nc5 {[%clk 0:00:05.5]} 77... Rb8+ {[%clk
0:00:08.5]} 78. Ka4 {[%clk 0:00:05.9]} 1/2-1/2

[Event "Early-Titled-Tuesday-Blitz-April-16-2024"]
[Site "Chess.com"]
[Date "2024.04.16"]
[Round "9"]
[White "ValentunHulka"]
[Black "Nf3c5"]
[Result "0-1"]
[WhiteElo "2788"]
[BlackElo "2633"]
[TimeControl "180+1"]
[EndTime "9:50:25 PDT"]
[Termination "Nf3c5 won by checkmate"]

1. d4 {[%clk 0:03:00.9]} 1... Nf6 {[%clk 0:02:58.6]} 2. c4 {[%clk 0:03:00.9]}
2... g6 {[%clk 0:02:59.1]} 3. Nc3 {[%clk 0:03:01.4]} 3... Bg7 {[%clk 0:02:59.6]}
4. g3 {[%clk 0:02:58.3]} 4... O-O {[%clk 0:02:58.3]} 5. Bg2 {[%clk 0:02:58.9]}
5... d6 {[%clk 0:02:58.8]} 6. h3 {[%clk 0:02:58.7]} 6... c6 {[%clk 0:02:59.7]}
7. e4 {[%clk 0:02:56.6]} 7... Qa5 {[%clk 0:02:57.2]} 8. Ne2 {[%clk 0:02:55.5]}
8... e5 {[%clk 0:02:55]} 9. O-O {[%clk 0:02:53.6]} 9... exd4 {[%clk 0:02:55.3]}
10. Nxd4 {[%clk 0:02:54.5]} 10... Qc5 {[%clk 0:02:54.8]} 11. Nb3 {[%clk
0:02:47]} 11... Qb4 {[%clk 0:02:52.4]} 12. Bf4 {[%clk 0:02:43]} 12... Ne8 {[%clk
0:02:49.3]} 13. Rc1 {[%clk 0:02:13]} 13... Nd7 {[%clk 0:02:27.9]} 14. a3 {[%clk
0:02:11.1]} 14... Qxc4 {[%clk 0:02:23.2]} 15. Re1 {[%clk 0:01:55.4]} 15... Qe6
{[%clk 0:02:17.5]} 16. Qd2 {[%clk 0:01:44.8]} 16... Ne5 {[%clk 0:02:12.8]} 17.
Nd4 {[%clk 0:01:38.6]} 17... Qe7 {[%clk 0:02:09.9]} 18. Qe2 {[%clk 0:01:31.1]}
18... Be6 {[%clk 0:01:54.9]} 19. Nxe6 {[%clk 0:01:26.5]} 19... Qxe6 {[%clk
0:01:44.5]} 20. Rcd1 {[%clk 0:01:26.3]} 20... Nc7 {[%clk 0:01:38]} 21. Bg5
{[%clk 0:01:17.7]} 21... h6 {[%clk 0:01:34.3]} 22. Be3 {[%clk 0:01:15.5]} 22...
Nc4 {[%clk 0:01:34.3]} 23. Bc1 {[%clk 0:01:15.5]} 23... Rad8 {[%clk 0:01:25.6]}
24. Qc2 {[%clk 0:01:14.5]} 24... Rfe8 {[%clk 0:01:21.3]} 25. Kf1 {[%clk
0:01:06.3]} 25... b5 {[%clk 0:01:15]} 26. b3 {[%clk 0:00:46.2]} 26... Ne5 {[%clk
0:01:03.7]} 27. f4 {[%clk 0:00:45.9]} 27... Nd7 {[%clk 0:01:03.3]} 28. Nd5
{[%clk 0:00:36.9]} 28... cxd5 {[%clk 0:00:47.3]} 29. exd5 {[%clk 0:00:37]} 29...
Qf6 {[%clk 0:00:38.4]} 30. Qxc7 {[%clk 0:00:35.4]} 30... Nc5 {[%clk 0:00:38.1]}
31. b4 {[%clk 0:00:29]} 31... Rxe1+ {[%clk 0:00:32.9]} 32. Rxe1 {[%clk
0:00:19.4]} 32... Nd3 {[%clk 0:00:33.1]} 33. Re7 {[%clk 0:00:16.5]} 33... Rf8
{[%clk 0:00:32]} 34. Bd2 {[%clk 0:00:13]} 34... Qd4 {[%clk 0:00:28.5]} 35. Re2
{[%clk 0:00:10.6]} 35... Qa1+ {[%clk 0:00:26.3]} 36. Be1 {[%clk 0:00:11.1]}
36... Nxe1 {[%clk 0:00:25.7]} 37. Rxe1 {[%clk 0:00:12]} 37... Qxa3 {[%clk
0:00:25.2]} 38. Qxd6 {[%clk 0:00:10.2]} 38... Qxg3 {[%clk 0:00:25.7]} 39. Qc7
{[%clk 0:00:03.2]} 39... Bd4 {[%clk 0:00:24.8]} 40. Re2 {[%clk 0:00:03]} 40...
Be3 {[%clk 0:00:18.6]} 41. Qc3 {[%clk 0:00:01.9]} 41... Bxf4 {[%clk 0:00:18.4]}
42. Qxg3 {[%clk 0:00:01.6]} 42... Bxg3 {[%clk 0:00:19.3]} 43. Re7 {[%clk
0:00:01.6]} 43... Ra8 {[%clk 0:00:11.8]} 44. d6 {[%clk 0:00:01.4]} 44... Rd8
{[%clk 0:00:11.6]} 45. d7 {[%clk 0:00:01.9]} 45... Kf8 {[%clk 0:00:11]} 46. Re3
{[%clk 0:00:02.1]} 46... Bd6 {[%clk 0:00:09.3]} 47. Bc6 {[%clk 0:00:01.2]} 47...
Bxb4 {[%clk 0:00:08.6]} 48. Rb3 {[%clk 0:00:02.1]} 48... a5 {[%clk 0:00:08.2]}
49. Bxb5 {[%clk 0:00:02.8]} 49... Ke7 {[%clk 0:00:07.8]} 50. Re3+ {[%clk
0:00:03.4]} 50... Kd6 {[%clk 0:00:08.2]} 51. Re8 {[%clk 0:00:04.3]} 51... Kc7
{[%clk 0:00:09]} 52. Ba4 {[%clk 0:00:04.6]} 52... h5 {[%clk 0:00:08.2]} 53. Kg2
{[%clk 0:00:05.1]} 53... Bd6 {[%clk 0:00:06.1]} 54. Kf3 {[%clk 0:00:05.2]} 54...
f6 {[%clk 0:00:05.6]} 55. Ke4 {[%clk 0:00:05.5]} 55... Be5 {[%clk 0:00:05.7]}
56. Kd5 {[%clk 0:00:05.7]} 56... g5 {[%clk 0:00:05.1]} 57. Ke6 {[%clk
0:00:02.8]} 57... g4 {[%clk 0:00:04.7]} 58. hxg4 {[%clk 0:00:02.7]} 58... hxg4
{[%clk 0:00:05.2]} 59. Ke7 {[%clk 0:00:03.6]} 59... Bd6+ {[%clk 0:00:04.3]} 60.
Ke6 {[%clk 0:00:04.2]} 60... g3 {[%clk 0:00:04.4]} 61. Rxd8 {[%clk 0:00:01.2]}
61... Kxd8 {[%clk 0:00:04.6]} 62. Bc6 {[%clk 0:00:01.9]} 62... a4 {[%clk
0:00:03.2]} 63. Kxd6 {[%clk 0:00:01.9]} 63... a3 {[%clk 0:00:03.8]} 64. Bd5
{[%clk 0:00:01.7]} 64... a2 {[%clk 0:00:04.3]} 65. Bxa2 {[%clk 0:00:02.2]} 65...
g2 {[%clk 0:00:05]} 66. Bd5 {[%clk 0:00:03]} 66... g1=Q {[%clk 0:00:05.9]} 67.
Ke6 {[%clk 0:00:03]} 67... Qb6+ {[%clk 0:00:05.9]} 68. Kf5 {[%clk 0:00:03]}
68... Qd6 {[%clk 0:00:05.8]} 69. Be4 {[%clk 0:00:03.6]} 69... Qe5+ {[%clk
0:00:06.2]} 70. Kg6 {[%clk 0:00:04.5]} 70... Qxe4+ {[%clk 0:00:06.8]} 71. Kf7
{[%clk 0:00:05.4]} 71... Kxd7 {[%clk 0:00:06.9]} 72. Kf8 {[%clk 0:00:05.5]}
72... f5 {[%clk 0:00:07.8]} 73. Kg8 {[%clk 0:00:06.3]} 73... f4 {[%clk
0:00:08.4]} 74. Kg7 {[%clk 0:00:06.6]} 74... f3 {[%clk 0:00:09.3]} 75. Kf7
{[%clk 0:00:07.5]} 75... f2 {[%clk 0:00:10]} 76. Kg8 {[%clk 0:00:08.1]} 76...
f1=Q {[%clk 0:00:10.6]} 77. Kh8 {[%clk 0:00:09]} 77... Qeg2 {[%clk 0:00:10.9]}
78. Kh7 {[%clk 0:00:09.2]} 78... Qfh1# {[%clk 0:00:11.8]} 0-1

[Event "Early-Titled-Tuesday-Blitz-April-16-2024"]
[Site "Chess.com"]
[Date "2024.04.16"]
[Round "9"]
[White "stolencandy13"]
[Black "MdChess1734"]
[Result "1-0"]
[WhiteElo "2563"]
[BlackElo "2370"]
[TimeControl "180+1"]
[EndTime "9:50:26 PDT"]
[Termination "stolencandy13 won on time"]

1. d4 {[%clk 0:02:55]} 1... Nf6 {[%clk 0:03:00.2]} 2. Bf4 {[%clk 0:02:53.5]}
2... e6 {[%clk 0:03:00.4]} 3. e3 {[%clk 0:02:53.8]} 3... b6 {[%clk 0:02:59.6]}
4. Nf3 {[%clk 0:02:52.7]} 4... Bb7 {[%clk 0:02:58.9]} 5. Bd3 {[%clk 0:02:52.2]}
5... Be7 {[%clk 0:02:59.1]} 6. O-O {[%clk 0:02:52.1]} 6... O-O {[%clk
0:02:59.1]} 7. c4 {[%clk 0:02:50.6]} 7... c5 {[%clk 0:02:56.6]} 8. h3 {[%clk
0:02:49.5]} 8... d6 {[%clk 0:02:56.9]} 9. Nc3 {[%clk 0:02:48.9]} 9... Nbd7
{[%clk 0:02:57.2]} 10. Re1 {[%clk 0:02:45.4]} 10... a6 {[%clk 0:02:53.2]} 11. a4
{[%clk 0:02:41.6]} 11... Re8 {[%clk 0:02:52.4]} 12. Qc2 {[%clk 0:02:32]} 12...
Bf8 {[%clk 0:02:48.3]} 13. Rad1 {[%clk 0:02:23.6]} 13... Qc8 {[%clk 0:02:24.5]}
14. Bh2 {[%clk 0:02:18.2]} 14... Bxf3 {[%clk 0:02:01.4]} 15. gxf3 {[%clk
0:02:17.8]} 15... e5 {[%clk 0:02:01.1]} 16. Kh1 {[%clk 0:02:08.3]} 16... g6
{[%clk 0:02:00.2]} 17. d5 {[%clk 0:02:03.3]} 17... Bg7 {[%clk 0:01:58.9]} 18.
Rg1 {[%clk 0:01:59.7]} 18... Nf8 {[%clk 0:01:55.1]} 19. Rg3 {[%clk 0:01:56.4]}
19... Nh5 {[%clk 0:01:54.2]} 20. Rg4 {[%clk 0:01:54.5]} 20... f5 {[%clk
0:01:16.5]} 21. Rg5 {[%clk 0:01:52.8]} 21... Qd8 {[%clk 0:01:01]} 22. Rdg1
{[%clk 0:01:49.8]} 22... Kh8 {[%clk 0:00:16]} 23. Bxf5 {[%clk 0:01:45.5]} 23...
Qf6 {[%clk 0:00:15.9]} 24. Ne4 {[%clk 0:01:38.1]} 24... Qe7 {[%clk 0:00:15.8]}
25. Bg4 {[%clk 0:01:33.2]} 25... Nf6 {[%clk 0:00:13.8]} 26. Be6 {[%clk
0:01:11.8]} 26... Nxe4 {[%clk 0:00:10.8]} 27. Qxe4 {[%clk 0:01:10.5]} 27... Nxe6
{[%clk 0:00:11.1]} 28. dxe6 {[%clk 0:01:09.8]} 28... Qxe6 {[%clk 0:00:11.4]} 29.
R5g4 {[%clk 0:00:59.3]} 29... Rab8 {[%clk 0:00:10.9]} 30. Rh4 {[%clk 0:00:54.9]}
30... Kg8 {[%clk 0:00:10.8]} 31. f4 {[%clk 0:00:47.9]} 31... exf4 {[%clk
0:00:10.3]} 32. Qxe6+ {[%clk 0:00:45.4]} 32... Rxe6 {[%clk 0:00:09.9]} 33. Rxf4
{[%clk 0:00:45.6]} 33... Bxb2 {[%clk 0:00:09.7]} 34. Rb1 {[%clk 0:00:41.4]}
34... Bc3 {[%clk 0:00:09.5]} 35. Rg4 {[%clk 0:00:37.8]} 35... Bb4 {[%clk
0:00:09.3]} 36. Rgg1 {[%clk 0:00:36]} 36... b5 {[%clk 0:00:08.8]} 37. axb5
{[%clk 0:00:35]} 37... axb5 {[%clk 0:00:09.4]} 38. cxb5 {[%clk 0:00:35]} 38...
Rxb5 {[%clk 0:00:09.5]} 39. Rgd1 {[%clk 0:00:35.7]} 39... Rb6 {[%clk 0:00:09.7]}
40. Kg2 {[%clk 0:00:34.8]} 40... c4 {[%clk 0:00:09.9]} 41. Rd4 {[%clk
0:00:22.3]} 41... d5 {[%clk 0:00:06.4]} 42. Rxd5 {[%clk 0:00:21.3]} 42... Rec6
{[%clk 0:00:07]} 43. Rdd1 {[%clk 0:00:14.3]} 43... c3 {[%clk 0:00:07.3]} 44.
Rdc1 {[%clk 0:00:14.4]} 44... c2 {[%clk 0:00:06.7]} 45. Rb2 {[%clk 0:00:12.7]}
45... Bd2 {[%clk 0:00:04.3]} 46. Rxb6 {[%clk 0:00:12]} 46... Rxb6 {[%clk
0:00:03.9]} 47. Rxc2 {[%clk 0:00:12.2]} 47... Bb4 {[%clk 0:00:04.5]} 48. Rc8+
{[%clk 0:00:11.6]} 48... Kg7 {[%clk 0:00:03.5]} 49. Be5+ {[%clk 0:00:12]} 49...
Kh6 {[%clk 0:00:03.8]} 50. Bd4 {[%clk 0:00:12.1]} 50... Rb7 {[%clk 0:00:02.3]}
51. Rc6 {[%clk 0:00:12.1]} 51... Ba5 {[%clk 0:00:02.3]} 52. Be5 {[%clk
0:00:12.2]} 52... Bb4 {[%clk 0:00:02.3]} 53. Bf4+ {[%clk 0:00:12.4]} 53... Kh5
{[%clk 0:00:02.1]} 54. Rc4 {[%clk 0:00:11.8]} 54... g5 {[%clk 0:00:02.1]} 55.
Be5 {[%clk 0:00:11.1]} 55... h6 {[%clk 0:00:02.4]} 56. Bg3 {[%clk 0:00:11.1]}
56... Be7 {[%clk 0:00:02.4]} 57. Rd4 {[%clk 0:00:11.3]} 57... Bf6 {[%clk
0:00:03.1]} 58. Rd5 {[%clk 0:00:11.6]} 58... Kg6 {[%clk 0:00:03.4]} 59. h4
{[%clk 0:00:10.7]} 59... Re7 {[%clk 0:00:03.4]} 60. hxg5 {[%clk 0:00:10.7]}
60... hxg5 {[%clk 0:00:03.7]} 61. Kf3 {[%clk 0:00:11.2]} 61... Re6 {[%clk
0:00:04.1]} 62. Rb5 {[%clk 0:00:11.5]} 62... Be7 {[%clk 0:00:04.6]} 63. Kg4
{[%clk 0:00:11.7]} 63... Rf6 {[%clk 0:00:05.2]} 64. f3 {[%clk 0:00:11.1]} 64...
Re6 {[%clk 0:00:05.1]} 65. e4 {[%clk 0:00:11.3]} 65... Bf6 {[%clk 0:00:05.8]}
66. Bf2 {[%clk 0:00:11.2]} 66... Be7 {[%clk 0:00:06.1]} 67. Be3 {[%clk
0:00:11.5]} 67... Rc6 {[%clk 0:00:06.1]} 68. Bxg5 {[%clk 0:00:11]} 68... Bf8
{[%clk 0:00:05.5]} 69. Bf4 {[%clk 0:00:10.7]} 69... Rc1 {[%clk 0:00:05.5]} 70.
Bxc1 {[%clk 0:00:10]} 1-0

[Event "Early-Titled-Tuesday-Blitz-April-16-2024"]
[Site "Chess.com"]
[Date "2024.04.16"]
[Round "9"]
[White "AnishOnYoutube"]
[Black "OparinGrigoriy"]
[Result "1-0"]
[WhiteElo "3063"]
[BlackElo "2993"]
[TimeControl "180+1"]
[EndTime "9:50:31 PDT"]
[Termination "AnishOnYoutube won by resignation"]

1. Nf3 {[%clk 0:03:00.9]} 1... Nf6 {[%clk 0:02:59.6]} 2. c4 {[%clk 0:03:01.2]}
2... e6 {[%clk 0:02:59.2]} 3. g3 {[%clk 0:03:01.3]} 3... d5 {[%clk 0:02:59.5]}
4. Bg2 {[%clk 0:03:00.5]} 4... dxc4 {[%clk 0:02:59.6]} 5. Qa4+ {[%clk
0:02:59.9]} 5... Bd7 {[%clk 0:02:59.5]} 6. Qxc4 {[%clk 0:03:00.3]} 6... c5
{[%clk 0:03:00.2]} 7. Ne5 {[%clk 0:03:00.7]} 7... Qc8 {[%clk 0:03:00.8]} 8. Qd3
{[%clk 0:02:59.5]} 8... Nc6 {[%clk 0:02:58.9]} 9. Nxd7 {[%clk 0:02:59.6]} 9...
Nxd7 {[%clk 0:02:59.8]} 10. b3 {[%clk 0:02:57.7]} 10... Be7 {[%clk 0:02:58.8]}
11. Bb2 {[%clk 0:02:58.1]} 11... O-O {[%clk 0:02:49.7]} 12. Nc3 {[%clk
0:02:58.2]} 12... Rd8 {[%clk 0:02:49.8]} 13. Rc1 {[%clk 0:02:57]} 13... Nf6
{[%clk 0:02:47.8]} 14. Qb1 {[%clk 0:02:56.9]} 14... Qd7 {[%clk 0:02:47.1]} 15.
d3 {[%clk 0:02:51.9]} 15... Rac8 {[%clk 0:02:46.4]} 16. O-O {[%clk 0:02:52]}
16... h6 {[%clk 0:02:43.3]} 17. Rfd1 {[%clk 0:02:49.9]} 17... b6 {[%clk
0:02:40.4]} 18. e3 {[%clk 0:02:48.6]} 18... Nd5 {[%clk 0:02:33.5]} 19. Rd2
{[%clk 0:02:19.7]} 19... Nxc3 {[%clk 0:02:26.9]} 20. Bxc3 {[%clk 0:02:19.9]}
20... Bf8 {[%clk 0:02:26.6]} 21. Qa1 {[%clk 0:02:09.5]} 21... Ne7 {[%clk
0:02:18.7]} 22. Bb2 {[%clk 0:02:00.7]} 22... b5 {[%clk 0:02:12.1]} 23. Be4
{[%clk 0:01:56.8]} 23... Nd5 {[%clk 0:02:09.3]} 24. Qb1 {[%clk 0:01:53.6]} 24...
a6 {[%clk 0:02:00.1]} 25. d4 {[%clk 0:01:50.9]} 25... c4 {[%clk 0:01:56.7]} 26.
bxc4 {[%clk 0:01:50.7]} 26... Rxc4 {[%clk 0:01:55.6]} 27. Rdc2 {[%clk 0:01:47]}
27... Rdc8 {[%clk 0:01:54.5]} 28. Bd3 {[%clk 0:01:41.6]} 28... Rxc2 {[%clk
0:01:48.3]} 29. Rxc2 {[%clk 0:01:41.9]} 29... Rxc2 {[%clk 0:01:45.7]} 30. Bxc2
{[%clk 0:01:42.3]} 30... Qc7 {[%clk 0:01:37.8]} 31. Bb3 {[%clk 0:01:30.9]} 31...
Nb6 {[%clk 0:01:31.9]} 32. Qc2 {[%clk 0:01:20.1]} 32... Nc4 {[%clk 0:01:31.5]}
33. h4 {[%clk 0:01:12.8]} 33... Qc6 {[%clk 0:01:26.5]} 34. a4 {[%clk 0:01:08.1]}
34... Bb4 {[%clk 0:01:21.9]} 35. axb5 {[%clk 0:01:07.1]} 35... axb5 {[%clk
0:01:22.8]} 36. Bc1 {[%clk 0:01:06.9]} 36... Bf8 {[%clk 0:01:13.5]} 37. e4
{[%clk 0:01:04.6]} 37... Qb7 {[%clk 0:01:00.2]} 38. Qd3 {[%clk 0:00:54.7]} 38...
h5 {[%clk 0:00:37.1]} 39. Bf4 {[%clk 0:00:54.1]} 39... g6 {[%clk 0:00:34.5]} 40.
d5 {[%clk 0:00:53.9]} 40... exd5 {[%clk 0:00:34.3]} 41. exd5 {[%clk 0:00:54.5]}
41... Nd6 {[%clk 0:00:31.8]} 42. Qc2 {[%clk 0:00:48.8]} 42... Qd7 {[%clk
0:00:28.1]} 43. Kg2 {[%clk 0:00:42.9]} 43... Qf5 {[%clk 0:00:25.4]} 44. Qxf5
{[%clk 0:00:38.9]} 44... Nxf5 {[%clk 0:00:26.3]} 45. Bc2 {[%clk 0:00:36.6]}
45... Nd6 {[%clk 0:00:26.5]} 46. Kf3 {[%clk 0:00:35.8]} 46... Be7 {[%clk
0:00:26.9]} 47. Ke3 {[%clk 0:00:30.5]} 47... b4 {[%clk 0:00:20.3]} 48. Kd3
{[%clk 0:00:28.8]} 48... Kf8 {[%clk 0:00:18]} 49. Bh6+ {[%clk 0:00:20.7]} 49...
Ke8 {[%clk 0:00:16.9]} 50. Ba4+ {[%clk 0:00:21]} 50... Kd8 {[%clk 0:00:17.4]}
51. Bd2 {[%clk 0:00:21.9]} 51... Nb7 {[%clk 0:00:14.9]} 52. Kc4 {[%clk 0:00:18]}
52... Nd6+ {[%clk 0:00:15.5]} 53. Kb3 {[%clk 0:00:17.7]} 53... Ne4 {[%clk
0:00:15.5]} 54. Be3 {[%clk 0:00:16.7]} 54... Bc5 {[%clk 0:00:14.5]} 55. Bxc5
{[%clk 0:00:09.1]} 55... Nxc5+ {[%clk 0:00:15.2]} 56. Kxb4 {[%clk 0:00:10]}
56... Nd3+ {[%clk 0:00:15.1]} 57. Kc4 {[%clk 0:00:04.7]} 57... Nxf2 {[%clk
0:00:16]} 58. Kd4 {[%clk 0:00:05]} 58... Nh1 {[%clk 0:00:15.7]} 59. Ke5 {[%clk
0:00:05.5]} 59... Nxg3 {[%clk 0:00:16.2]} 60. Kf6 {[%clk 0:00:06]} 60... Ne4+
{[%clk 0:00:13.2]} 61. Kxf7 {[%clk 0:00:05.7]} 61... g5 {[%clk 0:00:06]} 62. Bc2
{[%clk 0:00:06.3]} 62... Nd6+ {[%clk 0:00:05.9]} 63. Ke6 {[%clk 0:00:06.7]}
63... Nb5 {[%clk 0:00:03.9]} 64. hxg5 {[%clk 0:00:05.9]} 64... Nd4+ {[%clk
0:00:04.6]} 65. Kf7 {[%clk 0:00:02.9]} 65... Nxc2 {[%clk 0:00:05.1]} 66. g6
{[%clk 0:00:03.5]} 66... Nd4 {[%clk 0:00:03.5]} 67. g7 {[%clk 0:00:04.3]} 67...
Kd7 {[%clk 0:00:03.1]} 68. g8=Q {[%clk 0:00:04.9]} 1-0